Cogmind - Beta 13 @@@ ROGUE MODE // 2024.06.02 @ 16:06:57 Player: Gabe+Kate4EVR Result: Destroyed by G-47 Trooper with Particle Gun Performance ------------- Evolutions (3) 1500 Regions Visited (4) 800 Robots Destroyed (68) 340 Value Destroyed (1171) 1171 Prototype IDs (1) 20 Alien Tech Used (0) 0 Bonus (10) 10 TOTAL SCORE: 3841 Bonus ------- High Alert Combat Kills 10 Cogmind --------- Core Integrity 0/700 Matter 226/300 Energy 120/290 System Corruption 2% Temperature Cool (9) Movement Core (250) Ox4 Location -7/Factory Parts ------- > --- POWER (1) -------- Improved Deuterium Engine > --- PROPULSION (7) --- (None) > --- UTILITY (3) ------ Hacking Suite > --- WEAPON (2) ------- Autogun > --- INVENTORY (5) ---- Light Nuclear Core Improved Propulsion Shielding Improved Field Recycling Unit (0) Peak State ------------ > --- POWER ------------ Light Ion Engine > --- PROPULSION ------- Flight Unit Flight Unit Flight Unit Flight Unit Flight Unit Flight Unit Flight Unit > --- UTILITY ---------- Improved Signal Interpreter Hacking Suite Hacking Suite > --- WEAPON ----------- Assault Cannon Assault Cannon > --- INVENTORY -------- Improved Signal Interpreter Rocket Launcher Plasma Cutter Heavy Mace [Rating: 24] Favorites ----------- Power Light Ion Engine Engine Light Ion Engine Power Core Light Nuclear Core Propulsion Flight Unit Treads Light Treads Leg Aluminum Leg Wheel Wheel Flight Unit Flight Unit Utility Huge Storage Unit Device Improved Heat Sink Storage Huge Storage Unit Processor Improved Signal Interpreter Hackware Hacking Suite Protection Utility Shielding Weapon Heavy Assault Rifle Energy Gun Medium Laser Ballistic Gun Heavy Assault Rifle Ballistic Cannon Assault Cannon Launcher Rocket Launcher Impact Weapon Heavy Mace Build | -11 -10 -9 -8 -7 ------- Run | Yrd Mat Mat Mat Fac Slots Evolved 6 | . . 2 2 2 Power . | . . . . . Propulsion 5 | . . 2 1 2 Utility 1 | . . . 1 . Weapon . | . . . . . Parts Attached 86 | 5 25 27 7 22 Power 8 | . 4 1 . 3 Engine 5 | . 2 1 . 2 Core 3 | . 2 . . 1 Reactor . | . . . . . Propulsion 46 | 2 15 19 5 5 Treads 4 | . . 4 . . Leg 10 | 2 2 6 . . Wheel 21 | . 12 9 . . Hover . | . . . . . Flight 11 | . 1 . 5 5 Utility 12 | 1 3 1 2 5 Device 3 | . 1 . . 2 Storage 4 | 1 1 . . 2 Processor 2 | . . . 1 1 Hackware 2 | . . 1 1 . Protection 1 | . 1 . . . Artifact . | . . . . . Weapon 20 | 2 3 6 . 9 Energy Gun 4 | 1 1 1 . 1 Energy Cannon . | . . . . . Ballistic Gun 7 | 1 2 2 . 2 Ballistic Cannon 4 | . . 3 . 1 Launcher 3 | . . . . 3 Special Weapon . | . . . . . Impact Weapon 2 | . . . . 2 Slashing Weapon . | . . . . . Piercing Weapon . | . . . . . Special Melee Weapon . | . . . . . Unidentified Prototypes 1 | . . 1 . . Parts Lost 34 | . 5 10 . 19 Power 4 | . 1 1 . 2 Propulsion 21 | . 3 8 . 10 Utility 3 | . . . . 3 Weapon 6 | . 1 1 . 4 Highest Loss Streak 13 | . 2 4 . 13 To Critical Strikes . | . . . . . Average Slot Usage (%) 88 | . 89 91 93 72 Engine 4 | . 2 5 9 1 Core 4 | . 6 3 . 5 Treads 3 | . . 8 . . Leg 7 | . 8 8 . . Wheel 14 | . 14 21 . . Flight 7 | . . . 45 40 Device 3 | . 6 1 . . Storage 11 | . 14 11 6 5 Hackware 6 | . . 9 12 14 Protection 2 | . 6 . . . Energy Gun 6 | . 14 1 . . Ballistic Gun 10 | . 13 11 . 1 Ballistic Cannon 5 | . . 9 18 . Naked Turns . | . . . . . Heaviest Build 93 | 8 91 93 93 30 Greatest Support 80 | 20 26 80 20 28 Greatest Overweight (x) 9 | 1 9 9 4 3 Average Overweight (x) 1 | . 3 2 . . Largest Inventory Capacity 25 | 8 25 25 25 15 Average Capacity 20 | 7 19 25 19 13 Most Carried 25 | 1 25 25 25 15 Average Carried 17 | . 14 24 15 9 Final Capacity 25 | 8 25 25 5 5 Final Carried 25 | 1 25 25 5 3 Class Distribution -------------------- 53% | Scavenger-Mutant 39% | Mutant 7% | Scavenger-Sprinter Dominant Class ---------------- Mutant | -10/Materials Scavenger-Mutant | -9/Materials Scavenger-Mutant | -8/Materials Scavenger-Mutant | -7/Factory Resources | -11 -10 -9 -8 -7 ----------- Run | Yrd Mat Mat Mat Fac Matter Collected 1745 | 172 609 750 69 145 Remotely . | . . . . . Salvage Created 1875 | . 765 819 . 291 Parts 118 | . 43 60 . 15 Haulers Intercepted 2 | . 1 . . 1 Recyclers Shooed 4 | . 2 2 . . Parts Field Recycled . | . . . . . Retrieved Matter . | . . . . . Parts Self-Destructed . | . . . . . Prevented . | . . . . . Kills | -11 -10 -9 -8 -7 ------- Run | Yrd Mat Mat Mat Fac Combat Hostiles Destroyed 42 | . 14 22 . 6 Guns 34 | . 14 19 . 1 Cannons 3 | . . 3 . . AOE 4 | . . . . 4 Classes Destroyed 9 | . 7 2 . . Worker 11 | . 4 5 . 2 Builder 2 | . . 1 . 1 Hauler 2 | . 1 . . 1 Recycler 5 | . 3 1 . 1 Operator 3 | . 1 2 . . Watcher 3 | . 2 1 . . Swarmer 24 | . 8 11 . 5 Grunt 14 | . 6 7 . 1 Sentry 4 | . . 4 . . Best Kill Streak 7 | . 7 7 . 7 Combat Bots Only 6 | . 6 6 . 4 Max Kills in Single Turn 3 | . 1 2 . 3 Gunslinging . | . . . . . Exploded 2 | . . . . 2 Melee . | . . . . . Uniques/NPCs Destroyed . | . . . . . Combat | -11 -10 -9 -8 -7 -------- Run | Yrd Mat Mat Mat Fac Hostile Shots Fired 366 | . 87 123 3 153 Missed 102 | . 25 29 . 48 Damage Taken 3477 | . 626 1040 152 1659 Core 999 | . 101 188 . 710 Absorbed by Shields 7 | . . . . 7 Redirected to Shielding 12 | . 12 . . . Regen/Repaired (Parts) 39 | . 39 . . . Core Remaining (%) 78 | 100 59 53 100 . Volleys Fired 164 | . 72 77 . 15 Largest 2 | . 2 2 . 2 Hottest 90 | . 90 88 . 69 Shots Fired 312 | . 143 152 . 17 Gun 290 | . 143 134 . 13 Cannon 18 | . . 18 . . Launcher 4 | . . . . 4 Special . | . . . . . Kinetic 213 | . 63 140 . 10 Thermal 95 | . 80 12 . 3 Explosive 4 | . . . . 4 Electromagnetic . | . . . . . Robot Hit Streak 10 | . 10 9 . 3 Robot Miss Streak 6 | . 6 3 . 2 Penetration Max . | . . . . . Secondary Targets 7 | . 3 4 . . Max Gunslinging Chain 1 | . 1 1 . . Shots Hit Robots 197 | . 85 98 . 14 Core Hits 93 | . 33 41 . 19 Critical Kills . | . . . . . Critical Parts Destroyed 2 | . . . . 2 Critical Strikes 6 | . 3 1 . 2 Burn 4 | . 3 1 . . Smash 2 | . . . . 2 Melee Attacks 8 | . . . . 8 Impact 8 | . . . . 8 Slashing . | . . . . . Piercing . | . . . . . Sneak Attacks 1 | . . . . 1 Combat Hostiles . | . . . . . Follow-up Attacks . | . . . . . Damage Inflicted 3726 | . 1206 1639 . 881 Guns 2707 | . 1206 1383 . 118 Cannons 256 | . . 256 . . Explosions 485 | . . . . 485 Melee 278 | . . . . 278 Ramming . | . . . . . Kinetic 2266 | . 629 1537 . 100 Thermal 697 | . 577 102 . 18 Explosive 485 | . . . . 485 Electromagnetic . | . . . . . Impact 278 | . . . . 278 Slashing . | . . . . . Piercing . | . . . . . Highest Corruption 2 | . . . . 2 Average Corruption 1 | . . . . 1 Corruption Purged . | . . . . . Corruption Blocked . | . . . . . Overload Shots . | . . . . . Overflow Damage 180 | . . 12 . 168 Projectiles 12 | . . 12 . . Explosions . | . . . . . Melee 168 | . . . . 168 Knockbacks . | . . . . . Impact . | . . . . . Kinetic . | . . . . . Secondary . | . . . . . Self-Inflicted Damage 55 | . . . . 55 Shots 2 | . . . . 2 Rammed . | . . . . . Targets Rammed . | . . . . . Kicked . | . . . . . Crushed . | . . . . . Highest Temperature 166 | . 150 90 . 166 Average Temperature 46 | . 48 25 . 53 Received Heat Transfer 694 | . 177 297 . 220 Siege Activations . | . . . . . Robots Corrupted . | . . . . . Combat Hostiles . | . . . . . Parts Fried 1 | . . . . 1 Impact Corruptions 4 | . . . . 4 Robots Melted . | . . . . . Combat Hostiles . | . . . . . Parts Melted 2 | . 2 . . . Heat Transferred 2296 | . 1889 370 . 37 Parts Sabotaged . | . . . . . Parts Stolen . | . . . . . Parts Stripped . | . . . . . Power Chain Reactions . | . . . . . Alert | -11 -10 -9 -8 -7 ------- Run | Yrd Mat Mat Mat Fac Peak Influence 420 | . 190 420 95 96 Initial 58 | . . 35 58 6 Average 113 | . 86 175 65 28 Maximum Alert Level 2 | . . 2 . . Low Security (%) 88 | 100 100 71 100 100 Level 1 10 | . . 24 . . Level 2 1 | . . 3 . . Level 3 . | . . . . . Level 4 . | . . . . . Level 5 . | . . . . . High Security . | . . . . . Max Security . | . . . . . Squads Dispatched 11 | . 3 3 1 4 Investigation 3 | . 1 1 . 1 Extermination 1 | . . . . 1 Reinforcement 7 | . 2 2 1 2 Assault . | . . . . . Garrison . | . . . . . Intercept . | . . . . . Searches Triggered . | . . . . . Construction Impeded 1 | . . . . 1 Haulers Reinforced . | . . . . . Active Scanning Responses . | . . . . . Cargo Convoy Interrupts . | . . . . . Stealth | -11 -10 -9 -8 -7 --------- Run | Yrd Mat Mat Mat Fac Distress Signals 11 | . 3 7 1 . Communications Jammed . | . . . . . Distress Signals . | . . . . . Times Spotted 70 | . 24 29 5 12 Peak Tracking Total 7 | . 4 4 4 7 Tactical Retreats 1 | . . 1 . . Traps | -11 -10 -9 -8 -7 ------- Run | Yrd Mat Mat Mat Fac Traps Triggered 3 | . 2 1 . . Indirectly . | . . . . . Trap Hack Attempts . | . . . . . Triggered . | . . . . . Disarmed . | . . . . . Reprogrammed . | . . . . . Reused . | . . . . . Traps Extracted . | . . . . . Installed . | . . . . . Triggered . | . . . . . Machines | -11 -10 -9 -8 -7 ---------- Run | Yrd Mat Mat Mat Fac Machines Disabled . | . . . . . Max in Single Turn . | . . . . . Machines Repaired . | . . . . . Machines Dismantled . | . . . . . Machines Sabotaged . | . . . . . Overloaded Fab Kills . | . . . . . Hacking | -11 -10 -9 -8 -7 --------- Run | Yrd Mat Mat Mat Fac Machines Accessed 10 | . 2 4 2 2 Terminals 6 | . 1 3 2 . Fabricators 1 | . . . . 1 Repair Stations 1 | . 1 . . . Recycling Units 1 | . . . . 1 Scanalyzers 1 | . . 1 . . Garrison Access . | . . . . . Total Hacks 24 | . 8 8 4 4 Successful 13 | . 3 5 2 3 Failed 11 | . 5 3 2 1 Catastrophic 1 | . 1 . . . Database Lockouts . | . . . . . Manual 11 | . 3 4 4 . Terminals 13 | . 3 6 4 . Fabricators 2 | . . . . 2 Repair Stations 5 | . 5 . . . Recycling Units 2 | . . . . 2 Scanalyzers 2 | . . 2 . . Garrison Access . | . . . . . Terminal Hacks 6 | . 1 3 2 . Level Access Points 2 | . . 1 1 . Branch Access Points 1 | . . 1 . . Unreport Threat 3 | . 1 1 1 . Fabricator Hacks 2 | . . . . 2 Load Schematic 1 | . . . . 1 Build 1 | . . . . 1 Repair Station Hacks 2 | . 2 . . . Scan Component 1 | . 1 . . . Repair 1 | . 1 . . . Recycling Unit Hacks 1 | . . . . 1 Retrieve Components 1 | . . . . 1 Scanalyzer 2 | . . 2 . . Insert Component 1 | . . 1 . . Analyze 1 | . . 1 . . Garrison Access Hacks . | . . . . . Unauthorized Hacks . | . . . . . Terminals . | . . . . . Fabricators . | . . . . . Repair Stations . | . . . . . Recycling Units . | . . . . . Scanalyzers . | . . . . . Garrison Access . | . . . . . Data Cores Recovered . | . . . . . Used . | . . . . . Hacking Detections 9 | . 2 3 2 2 Full Trace Events 1 | . . . . 1 Feedback Events . | . . . . . Feedback Blocked . | . . . . . Robot Schematics Acquired . | . . . . . Robots Built . | . . . . . Authchips . | . . . . . Time . | . . . . . Total Robot Build Rating . | . . . . . Part Schematics Acquired 1 | . . 1 . . Parts Built 2 | . . . . 2 Authchips . | . . . . . Time 51 | . . . . 51 Total Part Build Rating 2 | . . . . 2 Parts Repaired 1 | . 1 . . . Time 38 | . 38 . . . Parts Recycled . | . . . . . Recycled Matter . | . . . . . Retrieved Matter . | . . . . . Retrieved Components 1 | . . . . 1 Parts Scanalyzed 1 | . . 1 . . Part Schematics Acquired 1 | . . 1 . . Parts Damaged 1 | . . 1 . . Bothacking | -11 -10 -9 -8 -7 ------------ Run | Yrd Mat Mat Mat Fac Used RIF Installer . | . . . . . Robots Hacked . | . . . . . Non-combat . | . . . . . Combat . | . . . . . Robot Hacks Applied . | . . . . . Relay Couplers Released . | . . . . . Fabnet Peak Effective % . | . . . . . Robots Rewired . | . . . . . Allies Hacked . | . . . . . Hacks Repelled . | . . . . . Allies | -11 -10 -9 -8 -7 -------- Run | Yrd Mat Mat Mat Fac Total Allies . | . . . . . Largest Group . | . . . . . Highest-Rated Group . | . . . . . Highest-Rated Ally . | . . . . . Total Orders . | . . . . . Ally Attacks . | . . . . . Total Damage . | . . . . . Kills . | . . . . . Allies Corrupted . | . . . . . Allies Melted . | . . . . . Intel | -11 -10 -9 -8 -7 ------- Run | Yrd Mat Mat Mat Fac Robot Analysis Total . | . . . . . Derelict Logs Recovered . | . . . . . Drone Launches . | . . . . . Drone Recoveries . | . . . . . Exploration | -11 -10 -9 -8 -7 ------------- Run | Yrd Mat Mat Mat Fac Turns Passed 2842 | 68 1075 1186 183 330 Spaces Moved 1618 | 55 463 555 166 379 Core 17 | 12 . . . 5 Treads 90 | . . 90 . . Legs 273 | 43 164 66 . . Wheels 698 | . 299 399 . . Hover . | . . . . . Flight 540 | . . . 166 374 Fastest Speed 22 | 50 120 100 28 22 Average Speed 122 | 109 160 159 93 36 Slowest Speed 680 | 120 680 260 348 277 Overloaded Moves . | . . . . . Propulsion Burnouts . | . . . . . Robots Hopped 6 | . . . 4 2 Cave-ins Triggered . | . . . . . Exploration Rate (%) 24 | 4 61 27 21 10 Regions Visited 4 Branch Regions . Pre-discovered Areas . | . . . . . Known Exits Taken 2 | . . 1 1 . Unknown Exits Taken 2 | 1 1 . . . Scrap Searched . | . . . . . Spaces Dug 11 | . . . . 11 Terrain Destroyed 23 | . . 3 . 20 Melee . | . . . . . Projectile 3 | . . 3 . . AOE 20 | . . . . 20 Terrain Rammed . | . . . . . Walls Destroyed . | . . . . . Machines Disabled . | . . . . . Actions | -11 -10 -9 -8 -7 --------- Run | Yrd Mat Mat Mat Fac Total 2159 | 60 649 716 194 540 Wait 157 | . 54 7 9 87 Move 1602 | 54 462 554 157 375 Hop 6 | . . . 4 2 Pick Up 67 | 1 22 22 1 21 Fast Attach 43 | 5 12 15 1 10 Attach 24 | . 3 8 2 11 Detach 16 | . 6 3 . 7 Swap 19 | . 10 4 4 1 Drop 53 | . 8 26 16 3 Fire 164 | . 72 77 . 15 Melee 8 | . . . . 8 Ram . | . . . . . Kick . | . . . . . Crush . | . . . . . Escape Stasis . | . . . . . Rewire . | . . . . . Trap . | . . . . . Miscellaneous . | . . . . . Route ------- -11/Scrapyard -10/Materials (discovered 2 exits: *Mat / [*Min]) -9/Materials (discovered 4 exits: *Mat x3 / Min) -8/Materials (discovered 3 exits: *Fac x3) -7/Factory (discovered 1 exit: *Low) History --------- Turn | Location | Event 2 | -11/Scrapyard | Discovered new exit (range 16) 69 | -11/Scrapyard | Entered Materials 315 | -10/Materials | Build established: Mutant 714 | -10/Materials | Discovered new exit (range 14) 869 | -10/Materials | Derelicts attacked the area 946 | -10/Materials | Discovered new exit (range 10) 1038 | -10/Materials | Repaired Lgt. Nuclear Core 1144 | -10/Materials | Entered another Materials area 1144 | -9/Materials | Evolved 2 slots: Propulsion x2 1208 | -9/Materials | Identified exit to Mines 1384 | -9/Materials | Lost 4 parts (3n1w) 1435 | -9/Materials | Identified exit to Materials 1860 | -9/Materials | Build established: Scavenger-Mutant 2330 | -9/Materials | Entered another Materials area 2330 | -8/Materials | Evolved 2 slots: Propulsion x1, Utility x1 2474 | -8/Materials | Identified exit to Factory 2513 | -8/Materials | Entered Factory 2513 | -7/Factory | Evolved 2 slots: Propulsion x2 2624 | -7/Factory | Fabricated Flight Unit (x2) 2671 | -7/Factory | Discovered new exit (range 9) 2679 | -7/Factory | Identified exit to Lower Caves 2768 | -7/Factory | Lost 6 parts (5n1w) 2821 | -7/Factory | Core integrity fell below 50% 2834 | -7/Factory | Core integrity fell below 20% 2843 | -7/Factory | Destroyed by G-47 Trooper with Particle Gun Last Messages --------------- local area. 02816_ Autogun destroyed. 02817_ K-01 Serf collects debris. 02818_ Imp. Deuterium Engine destroyed. 02820_ Acquired Hvy. Laser. 02821_ S-27 Virus destroyed. 02822_ R-06 Scavenger collects Welding Torch. 02826_ R-06 Scavenger collects Wheel. 02829_ Hacking Suite destroyed. 02829_ U-05 Engineer lays Concrete. 02830_ U-05 Engineer builds a Wall. 02830_ Hvy. Laser destroyed. 02834_ R-06 Scavenger collects VTOL Module. 02834_ Acquired Imp. Deuterium Engine. 02835_ U-05 Engineer lays Concrete. 02835_ Force Field destroyed. 02836_ U-05 Engineer lays Concrete. 02840_ P-60 Hacker resets R-06 Scavenger, system corruption cleaned. 02840_ Acquired Autogun. 02842_ U-05 Engineer builds a Wall. Map ----- +----------------------------------------------------+ | #?????????????????????????????????????????? | | #?????????????????????????????????????????? | | # T# ??????????????????????????????????????????? | | #??# #?????????????????????????????????????????? | | #??# +?????????????????????????????????????????? | | #??# #?????????????????????????????????????????? | | #??# #?????????????????????????????????????????? | | #??# #?????????????????????????????????????????? | | #??# #?????????????????????????????????????????? | | #??# #??######?????????????????????????????????? | | #??# #? = #?????????????????????????????????? | | #??# #? ?#####+##?????????????????????????? | | #??# # """?# ?????????????????????????? | | #??# # """""?# ??????????????????????????? | | #??# + """""?# """ ""???????????????????????? | | #??# # # """ """ ????????????????????? | | #### ######### """ """ #???????????????????? | | ## #???# " ???????????????????? | | ##### "% ???????????????????? | | "" = " ???????????????????? | | "T |! #??????????????????????? | | !! #?#????????????????????? | | #### / # #????????????????????? | | ## #??? r # #????????????????????? | | ?### #####?#### % ## ###+###??????????????????? | | ???# #???? # s@% #??????????????????? | | ???# #????" % g **! #??????????????????? | | ???# #????" ^ %g * ! [#??????????????????? | | ???? #????" #r # * #??????????????????? | | ???? #????????# #p* #??????????????????? | | ???? #????????# # " "" #??????????????????? | | ??????????????# # "R"" #??????????????????? | | ??????????????# # ! """ #??????????????????? | | ??????????????# ###########??????????????????? | | ??????????????# #????????????????????????????? | | ??????????????# #????????????????????????????? | | ??????????????# #????????????????????????????? | | ??????????????# #????????????????????????????? | | ?????????????? ????????????????????????????? | | ?????????????? ????????????????????????????? | | ????????????? ????????????????????????????? | | ??????????????? ????????????????????????????? | | ????????????????? ?????????????????????????????? | | ?????????????????????????????????????????????????? | | ?????????????????????????????????????????????????? | | ?????????????????????????????????????????????????? | | ?????????????????????????????????????????????????? | | ?????????????????????????????????????????????????? | | ?????????????????????????????????????????????????? | | ?????????????????????????????????????????????????? | +----------------------------------------------------+ Best States ------------- Heat Dissipation 42 Energy Generation 16 Energy Capacity 290 Matter Stores 300 Matter Capacity 300 Sight Range 16 Terrain Scan Density 10 Utility Shielding 33 Evasion (%) 70 Recoil Reduction 4 Offensive Hacking 20 Item Schematics ----------------- Flight Unit | -9/Materials | Scanalyzed Robot Schematics ------------------ None Fabricated ------------ Flight Unit | x2 | -7/Factory Alien Tech Used ----------------- None Achievements -------------- None Challenges ------------ None Game ------ Seed ExplosiveServoStripper Manual? 0 Play Time 00:23:30 Cumulative 169.3 hours Start 2024.06.02 @ 15:39:54 End 2024.06.02 @ 16:06:57 Sessions 3 Manual Loads 0 Difficulty Rogue Special Mode None Game No. 338 Rogue 338 Adventurer 0 Explorer 0 Win Type - Total 0 Types 0/0/0/0/0/0/0/0/0 Lore% 47 Gallery% 63 Achievement% 45 Wizard Run 0 Options --------- Layout 0 ASCII 0 Keyboard 1 Movement Numpad Keybinds 0 Fullscreen 2 Font 18/X11 Map View 76x50 Zoom Use 0% Tactical HUD 1 Map Filters NONE Filters NONE Steam 1 RUN: b478ea3b-7bea-43c7-b430-924dabe8daa6